Cogmind - Beta 16.1 @@@ ROGUE MODE // 2026.01.03 @ 20:26:28 Player: BlobtheGreat Result: Destroyed by D-53 Grenadier with Mini Grenade Launcher Performance ------------- Evolutions (1) 500 Regions Visited (4) 800 Robots Destroyed (57) 285 Value Destroyed (1396) 1396 Prototype IDs (1) 20 Alien Tech Used (0) 0 Bonus (60) 60 TOTAL SCORE: 3061 Bonus ------- Follower Combat Kills 60 Cogmind --------- Core Integrity 0/400 Matter 173/300 Energy 73/100 System Corruption 0% Temperature Cool (0) Movement Core (450) Ox8 Location -9/Mines Parts ------- > --- POWER (1) -------- (None) > --- PROPULSION (3) --- (None) > --- UTILITY (3) ------ Large Storage Unit Core Analyzer > --- WEAPON (2) ------- Improved Medium Laser Light Cannon > --- INVENTORY (15) --- Light Ion Engine Light Treads Light Treads High-capacity Storage Unit Seismic Detector Seismic Detector Arc Projector Rocket Launcher Spear Botcube Peak State ------------ > --- POWER ------------ Improved Ion Engine > --- PROPULSION ------- Aluminum Leg Aluminum Leg Aluminum Leg > --- UTILITY ---------- Large Storage Unit Light Armor Plating > --- WEAPON ----------- Gauss Rifle Flak Gun > --- INVENTORY -------- Light Ion Engine Light Treads Light Treads Aluminum Leg High-capacity Storage Unit Seismic Detector Seismic Detector Core Analyzer Arc Projector Improved Medium Laser Light Cannon Rocket Launcher Spear Botcube [Rating: 18] Favorites ----------- Power Ion Engine Engine Ion Engine Power Core Light Nuclear Core Propulsion Aluminum Leg Leg Aluminum Leg Utility Large Storage Unit Storage Large Storage Unit Processor Core Analyzer Protection Light Armor Plating Weapon Light Assault Rifle Energy Gun Improved Medium Laser Ballistic Gun Light Assault Rifle Ballistic Cannon Light Cannon Launcher Rocket Launcher Build | -11 -10 -10 -9 -9 ------- Run | Yrd Mat Min Mat Min Slots Evolved 2 | . . . 2 . Power . | . . . . . Propulsion 1 | . . . 1 . Utility 1 | . . . 1 . Weapon . | . . . . . Parts Attached 37 | 6 5 4 15 7 Power 3 | 1 . 1 1 . Engine 2 | 1 . . 1 . Core 1 | . . 1 . . Reactor . | . . . . . Propulsion 12 | 2 1 3 5 1 Treads . | . . . . . Leg 12 | 2 1 3 5 1 Wheel . | . . . . . Hover . | . . . . . Flight . | . . . . . Utility 6 | 1 1 . 3 1 Device . | . . . . . Storage 3 | 1 1 . 1 . Processor 1 | . . . . 1 Hackware . | . . . . . Protection 2 | . . . 2 . Artifact . | . . . . . Weapon 16 | 2 3 . 6 5 Energy Gun 3 | . . . 2 1 Energy Cannon . | . . . . . Ballistic Gun 11 | 2 3 . 4 2 Ballistic Cannon 1 | . . . . 1 Launcher 1 | . . . . 1 Special Weapon . | . . . . . Impact Weapon . | . . . . . Slashing Weapon . | . . . . . Piercing Weapon . | . . . . . Special Melee Weapon . | . . . . . Unidentified Prototypes 1 | . . . 1 . Parts Lost 12 | . . . 4 8 Power 2 | . . . 1 1 Propulsion 5 | . . . 2 3 Utility 2 | . . . 1 1 Weapon 3 | . . . . 3 Highest Loss Streak 6 | . . . 2 6 To Critical Strikes . | . . . . . Average Backups 12 | 2 10 13 13 13 Power . | . 1 1 1 1 Propulsion 3 | . 3 4 2 2 Utility 3 | . 2 3 3 3 Weapon 5 | . 3 5 5 5 Tool/Special . | . . . . . Unused Backups 11 | . . . 1 10 Power 1 | . . . . 1 Propulsion 2 | . . . . 2 Utility 3 | . . . . 3 Weapon 5 | . . . 1 4 Tool/Special . | . . . . . Average Slot Usage (%) 84 | . 85 85 81 84 Engine 9 | . 14 8 5 10 Core 3 | . . 5 5 . Leg 29 | . 28 28 31 32 Storage 12 | . 14 14 11 11 Protection 2 | . . . 6 8 Energy Gun 2 | . . . 7 3 Ballistic Gun 23 | . 28 28 14 17 Peak Build Rating 18 | 7 8 10 16 18 Average Rating 10 | 5 7 8 13 17 On Entrance 7 | . 7 8 10 14 Avg Prop Armor Cover (%) . | . . . . . Naked Turns . | . . . . . Heaviest Build 74 | 12 28 28 74 38 Greatest Support 30 | 20 20 20 30 30 Greatest Overweight (x) 2 | . 1 1 2 1 Average Overweight (x) . | . . 1 . 1 Largest Inventory Capacity 20 | 8 15 15 20 15 Average Capacity 14 | 7 14 15 15 15 Most Carried 15 | 7 15 15 15 15 Average Carried 13 | 3 11 14 14 14 Final Capacity 15 | 8 15 15 15 15 Final Carried 15 | 7 15 15 15 10 Class Distribution -------------------- 65% | Mutant 34% | Scavenger-Mutant Dominant Class ---------------- Mutant | -10/Materials Mutant | -10/Mines Scavenger-Mutant | -9/Materials Scavenger-Mutant | -9/Mines Resources | -11 -10 -10 -9 -9 ----------- Run | Yrd Mat Min Mat Min Matter Collected 1137 | 280 124 101 493 139 Remotely . | . . . . . Salvage Created 2057 | 125 375 131 1117 309 Parts 129 | 16 19 12 75 7 Haulers Intercepted 2 | . 1 . 1 . Recyclers Shooed 3 | . 1 . 2 . Parts Field Recycled . | . . . . . Retrieved Matter . | . . . . . Parts Self-Destructed . | . . . . . Prevented . | . . . . . Parts Restored . | . . . . . Kills | -11 -10 -10 -9 -9 ------- Run | Yrd Mat Min Mat Min Combat Hostiles Destroyed 53 | . 7 5 24 17 Guns 44 | . 7 5 24 8 AOE 9 | . . . . 9 Classes Destroyed 12 | 2 4 . 3 3 Builder 1 | . 1 . . . Tunneler 4 | 3 1 . . . Hauler 2 | . 1 . 1 . Recycler 3 | 1 . . 2 . Mechanic 1 | . . . 1 . Watcher 3 | . . . 3 . Swarmer 13 | . 1 3 9 . Grunt 22 | . 6 2 9 5 Brawler 1 | . . . . 1 Duelist 1 | . . . . 1 Sentry 6 | . . . 6 . Assembled 10 | . . . . 10 Best Kill Streak 10 | 2 4 3 6 10 Combat Bots Only 10 | . 2 3 5 10 Max Kills in Single Turn 3 | 1 1 1 1 3 Gunslinging 1 | . . . . 1 Exploded 3 | . . . . 3 Melee . | . . . . . Uniques/NPCs Destroyed . | . . . . . Combat | -11 -10 -10 -9 -9 -------- Run | Yrd Mat Min Mat Min Hostile Shots Fired 245 | . 50 19 105 71 Missed 62 | . 11 3 34 14 Hits 183 | . 39 16 71 57 Melee 13 | . . . . 13 Projectile 170 | . 39 16 71 44 AOE 13 | . . . . 13 Critical Strikes 2 | . 1 . . 1 Damage Taken 2894 | . 449 161 894 1390 Core 550 | . 91 52 132 275 Absorbed by Shields . | . . . . . Core Remaining (%) 71 | 100 . 42 . . Volleys Fired 197 | 10 47 14 96 30 Largest 2 | 2 2 2 2 2 Hottest 86 | 40 40 40 79 86 Shots Fired 390 | 20 94 28 192 56 Gun 384 | 20 94 28 192 50 Cannon 2 | . . . . 2 Launcher 4 | . . . . 4 Special . | . . . . . Kinetic 311 | 20 94 28 127 42 Thermal 75 | . . . 65 10 Explosive 4 | . . . . 4 Electromagnetic . | . . . . . Robot Hit Streak 12 | 8 12 6 9 8 Robot Miss Streak 6 | 2 4 4 3 6 Penetration Max 1 | . . . . 1 Secondary Targets 3 | . 1 . . 2 Max Gunslinging Chain 1 | . 1 . . 1 Shots Hit Robots 234 | 13 63 13 105 40 Core Hits 122 | 7 23 8 48 36 Critical Kills . | . . . . . Critical Parts Destroyed 2 | . 1 . 1 . Critical Strikes 5 | . 1 . 3 1 Burn 2 | . . . 2 . Destroy 2 | . 1 . 1 . Blast 1 | . . . . 1 Melee Attacks . | . . . . . Impact . | . . . . . Slashing . | . . . . . Piercing . | . . . . . Sneak Attacks . | . . . . . Combat Hostiles . | . . . . . Follow-up Attacks . | . . . . . Damage Inflicted 3895 | 100 561 170 1740 1324 Guns 3227 | 100 552 158 1719 698 Cannons 36 | . . . . 36 Explosions 581 | . . . . 581 Melee . | . . . . . Ramming 51 | . 9 12 21 9 Kinetic 2532 | 100 552 158 1125 597 Thermal 731 | . . . 594 137 Explosive 581 | . . . . 581 Electromagnetic . | . . . . . Impact . | . . . . . Slashing . | . . . . . Piercing . | . . . . . Highest Corruption . | . . . . . Average Corruption . | . . . . . Corruption Purged . | . . . . . Corruption Blocked . | . . . . . Overload Shots . | . . . . . Overflow Damage 28 | . . . . 28 Projectiles . | . . . . . Explosions 28 | . . . . 28 Melee . | . . . . . Knockbacks 2 | . 1 . . 1 Impact 1 | . 1 . . . Kinetic 1 | . . . . 1 Secondary . | . . . . . Self-Inflicted Damage 55 | . . . . 55 Shots 3 | . . . . 3 Rammed . | . . . . . Targets Rammed 13 | . 2 3 7 1 Kicked 13 | . 2 3 7 1 Crushed . | . . . . . Highest Temperature 174 | . 33 9 174 93 Average Temperature 32 | . 9 8 35 34 Received Heat Transfer 781 | . 249 45 303 184 Siege Activations . | . . . . . Martial Activations . | . . . . . Shielding Activations . | . . . . . Robots Disrupted . | . . . . . Combat Hostiles . | . . . . . Robots Corrupted . | . . . . . Combat Hostiles . | . . . . . Parts Fried . | . . . . . Impact Corruptions . | . . . . . Robots Melted . | . . . . . Combat Hostiles . | . . . . . Parts Melted 1 | . . . 1 . Heat Transferred 1702 | . . . 1406 296 Parts Sabotaged . | . . . . . Parts Stolen . | . . . . . Parts Stripped . | . . . . . Power Chain Reactions . | . . . . . Alert | -11 -10 -10 -9 -9 ------- Run | Yrd Mat Min Mat Min Maximum Alert Level 1 | . . . 1 . Low Security (%) 86 | 100 100 100 42 100 Level 1 13 | . . . 57 . Level 2 . | . . . . . Level 3 . | . . . . . Level 4 . | . . . . . Level 5 . | . . . . . High Security . | . . . . . Max Security . | . . . . . Peak Influence 337 | 10 76 70 337 154 Initial 114 | . 3 . . 114 Average 68 | 2 17 8 203 88 Influence Increases 1344 | 20 200 143 700 281 Destroy 0b10 Robot/C 900 | . 140 100 480 180 Destroy 0b10 Robot/NC 70 | 20 15 . 35 . Destroy Leader 220 | . 32 20 128 40 Allied During Kill 15 | . . 8 . 7 Successful Hack 21 | . 13 . 8 . Disable Machine 15 | . . . . 15 Destroy Structure 28 | . . . 4 24 Lose Combat Pursuer 75 | . . 15 45 15 Influence Decreases 1344 | 15 205 143 406 575 Entered New Map 182 | . 2 . . 180 Time Decay 982 | 15 203 143 366 255 Lost Part 120 | . . . 40 80 Lost Ally 60 | . . . . 60 Squads Dispatched 6 | . 2 . 3 1 Investigation 3 | . 1 . 1 1 Extermination . | . . . . . Reinforcement 3 | . 1 . 2 . Assault . | . . . . . Garrison . | . . . . . Intercept . | . . . . . Searches Triggered . | . . . . . Construction Impeded . | . . . . . Haulers Reinforced . | . . . . . Active Scanning Responses . | . . . . . Cargo Convoy Interrupts . | . . . . . Stealth | -11 -10 -10 -9 -9 --------- Run | Yrd Mat Min Mat Min Distress Signals 10 | . 2 . 8 . Communications Jammed . | . . . . . Distress Signals . | . . . . . Times Spotted 95 | . 16 6 44 29 Peak Tracking Total 13 | . 3 3 6 13 Tactical Retreats 5 | . . 1 2 2 Traps | -11 -10 -10 -9 -9 ------- Run | Yrd Mat Min Mat Min Traps Triggered 1 | . 1 . . . Indirectly . | . . . . . Trap Hack Attempts . | . . . . . Triggered . | . . . . . Disarmed . | . . . . . Reprogrammed . | . . . . . Reused . | . . . . . Traps Extracted . | . . . . . Installed . | . . . . . Triggered . | . . . . . Machines | -11 -10 -10 -9 -9 ---------- Run | Yrd Mat Min Mat Min Machines Disabled 2 | . . . 1 1 Max in Single Turn 1 | . . . 1 1 Machines Repaired . | . . . . . Machines Dismantled . | . . . . . Machines Sabotaged . | . . . . . Overloaded Fab Kills . | . . . . . Hacking | -11 -10 -10 -9 -9 --------- Run | Yrd Mat Min Mat Min Machines Accessed 12 | . 5 . 5 2 Terminals 9 | . 5 . 3 1 Fabricators . | . . . . . Repair Stations . | . . . . . Recycling Units . | . . . . . Scanalyzers 2 | . . . 2 . Garrison Access . | . . . . . Total Hacks 23 | . 11 . 9 3 Successful 10 | . 4 . 4 2 Failed 13 | . 7 . 5 1 Catastrophic 1 | . 1 . . . Database Lockouts . | . . . . . Manual 16 | . 11 . 5 . Terminals 18 | . 11 . 5 2 Fabricators . | . . . . . Repair Stations . | . . . . . Recycling Units . | . . . . . Scanalyzers 4 | . . . 4 . Garrison Access . | . . . . . Terminal Hacks 6 | . 3 . 1 2 Robot Schematic 1 | . 1 . . . Robot Analysis 2 | . 2 . . . Open Door 1 | . . . . 1 Branch Access Points 1 | . . . 1 . Zone Layout 1 | . . . . 1 Fabricator Hacks . | . . . . . Repair Station Hacks . | . . . . . Recycling Unit Hacks . | . . . . . Scanalyzer 1 | . . . 1 . Retrieve Study 1 | . . . 1 . Garrison Access Hacks . | . . . . . Unauthorized Hacks 3 | . 1 . 2 . Terminals 3 | . 1 . 2 . Botnet 1 | . . . 1 . Skim 2 | . 1 . 1 . Fabricators . | . . . . . Repair Stations . | . . . . . Recycling Units . | . . . . . Scanalyzers . | . . . . . Garrison Access . | . . . . . Data Cores Recovered . | . . . . . Used . | . . . . . Hacking Detections 8 | . 5 . 3 . Full Trace Events 1 | . . . 1 . Feedback Events . | . . . . . Feedback Blocked . | . . . . . Robot Schematics Acquired 1 | . 1 . . . Robots Built . | . . . . . Authchips . | . . . . . Time . | . . . . . Total Robot Build Rating . | . . . . . Part Schematics Acquired . | . . . . . Parts Built . | . . . . . Authchips . | . . . . . Time . | . . . . . Total Part Build Rating . | . . . . . Part Studies Acquired 1 | . . . 1 . Parts Repaired . | . . . . . Time . | . . . . . Parts Recycled . | . . . . . Recycled Matter . | . . . . . Retrieved Matter . | . . . . . Retrieved Components . | . . . . . Parts Scanalyzed . | . . . . . Part Schematics Acquired . | . . . . . Parts Damaged . | . . . . . Bothacking | -11 -10 -10 -9 -9 ------------ Run | Yrd Mat Min Mat Min Used RIF Installer . | . . . . . Robots Hacked . | . . . . . Non-combat . | . . . . . Combat . | . . . . . Robot Hacks Applied . | . . . . . Relay Couplers Released . | . . . . . Fabnet Peak Effective % . | . . . . . Robots Rewired . | . . . . . Allies Hacked . | . . . . . Hacks Repelled . | . . . . . Allies | -11 -10 -10 -9 -9 -------- Run | Yrd Mat Min Mat Min Total Allies 6 | . . 3 . 3 Largest Group 3 | . . 2 . 3 Highest-Rated Group 42 | . . 42 . 40 Highest-Rated Ally 31 | . . 31 . 16 Total Orders . | . . . . . Ally Attacks 24 | . . 4 . 20 Total Damage 270 | . . 43 . 227 Kills 2 | . . . . 2 Allies Corrupted . | . . . . . Allies Melted . | . . . . . Intel | -11 -10 -10 -9 -9 ------- Run | Yrd Mat Min Mat Min Active Infowar (turns) . | . . . . . Robot Analysis Total 2 | . 2 . . . Derelict Logs Recovered 2 | . . 1 . 1 Drone Launches . | . . . . . Drone Recoveries . | . . . . . Exploration | -11 -10 -10 -9 -9 ------------- Run | Yrd Mat Min Mat Min Turns Passed 3775 | 93 824 1394 901 563 Spaces Moved 1714 | 46 365 707 335 261 Core 3 | 3 . . . . Treads . | . . . . . Legs 1711 | 43 365 707 335 261 Wheels . | . . . . . Hover . | . . . . . Flight . | . . . . . Fastest Speed 50 | 50 120 190 105 175 Average Speed 181 | 115 186 190 169 175 Slowest Speed 245 | 120 190 190 245 175 Overloaded Moves . | . . . . . Propulsion Burnouts . | . . . . . Robots Hopped . | . . . . . Potential Cave-ins . | . . . . . Cave-ins Triggered . | . . . . . Exploration Rate (%) 54 | 4 74 99 36 58 Regions Visited 4 Branch Regions 2 Pre-discovered Areas 1 | . . . . 1 Known Exits Taken 1 | . . . 1 . Unknown Exits Taken 3 | 1 1 1 . . Scrap Searched 1 | . . 1 . . Spaces Dug 30 | . . . . 30 Terrain Destroyed 36 | . . . . 36 Melee . | . . . . . Projectile 1 | . . . . 1 AOE 35 | . . . . 35 Terrain Rammed . | . . . . . Walls Destroyed . | . . . . . Machines Disabled . | . . . . . Actions | -11 -10 -10 -9 -9 --------- Run | Yrd Mat Min Mat Min Total 2016 | 67 430 733 472 314 Wait 15 | . 2 . 10 3 Move 1710 | 45 364 706 334 261 Hop . | . . . . . Pick Up 18 | 6 6 1 1 4 Fast Attach 14 | 6 1 . 7 . Attach 6 | . . . 2 4 Detach 2 | . 1 . 1 . Swap 18 | . 4 4 6 4 Drop 23 | . 3 5 8 7 Fire 197 | 10 47 14 96 30 Melee . | . . . . . Ram . | . . . . . Kick 13 | . 2 3 7 1 Crush . | . . . . . Escape Stasis . | . . . . . Rewire . | . . . . . Trap . | . . . . . Miscellaneous . | . . . . . Route ------- -11/Scrapyard -10/Materials (discovered 3 exits: *Mat x2 / [*Min]) -10/Mines (discovered 2 exits: *Mat x2) -9/Materials (discovered 4 exits: Mat / *Min x2 / *Sto) -9/Mines (discovered 2 exits: *Mat x2) History --------- Turn | Location | Event 16 | -11/Scrapyard | Discovered new exit (range 15) 94 | -11/Scrapyard | Entered Materials 175 | -10/Materials | Discovered new exit (range 15) 317 | -10/Materials | Build established: Mutant 698 | -10/Materials | Discovered new exit (range 4) 740 | -10/Materials | Discovered new exit (range 16) 918 | -10/Materials | Entered Mines 1029 | -10/Mines | Found a Scrap Suit stashed away for nefarious purposes 1091 | -10/Mines | Received a Rocket Launcher from a helpful Derelict 1169 | -10/Mines | Learned location of 1 exit from Materials 1328 | -10/Mines | Discovered new exit (range 12) 1445 | -10/Mines | Discovered new exit (range 5) 1477 | -10/Mines | Found a hidden stash of uninstalled traps 1732 | -10/Mines | Core integrity fell below 50% 1806 | -10/Mines | Received a Mining Laser from a helpful Derelict 2312 | -10/Mines | Entered Materials 2312 | -9/Materials | Evolved 2 slots: Propulsion x1, Utility x1 2313 | -9/Materials | Identified exit to Materials 2504 | -9/Materials | Discovered new exit (range 12) 2660 | -9/Materials | Build established: Scavenger-Mutant 2746 | -9/Materials | Discovered new exit (range 10) 2996 | -9/Materials | Discovered new exit (range 7) 3145 | -9/Materials | Identified exit to Mines 3145 | -9/Materials | Identified exit to Storage 3213 | -9/Materials | Entered Mines 3220 | -9/Mines | Discovered exit to Materials (range 8) 3242 | -9/Mines | Met a Derelict shopkeep closing up shop 3403 | -9/Mines | Learned location of Storage (-9) 3467 | -9/Mines | Discovered exit to Materials (range 10) 3529 | -9/Mines | Assisted by bots powering up and referring to "LRC-V3" 3709 | -9/Mines | Assembled infested the area 3714 | -9/Mines | Assisted by a Guerilla fighting off Assembled 3747 | -9/Mines | Core integrity fell below 50% 3768 | -9/Mines | Core integrity fell below 20% 3776 | -9/Mines | Destroyed 10 combat bots 3776 | -9/Mines | Destroyed by D-53 Grenadier with Mini Grenade Launcher Last Messages --------------- 03755_ as-94982 destroyed. 03755_ as-33411 destroyed. 03757_ Knocked back. 03758_ Destroyed Asb. Hover Unit. 03759_ as-16367 destroyed. 03760_ The unstable cave ceiling collapses. 03761_ Aluminum Leg+ destroyed. 03763_ The unstable cave ceiling collapses. 03766_ Flak Gun destroyed. 03766_ Gauss Rifle destroyed. 03767_ The unstable cave ceiling collapses. 03770_ Aluminum Leg+ destroyed. 03770_ D-53 Grenadier destroyed. 03770_ as-42726 suffers critical hit (Destroy). 03770_ as-42726 destroyed. 03770_ D-53 Grenadier Launcher Guidance Computer blasted off. 03771_ The unstable cave ceiling collapses. 03773_ D-53 Grenadier knocked back. 03776_ The unstable cave ceiling collapses. Map ----- +----------------------------------------------------+ | ??????????????????? ### ####%## | | ??????????????????? ## ##?# *% | | ??????????????????? ######??# % = | | ?????????????????? ##??????# ###### | | ??????????????????# #####?## = ##????# | | ??????????????????## #"""## = #?##### | | ??????????????????#" % %= ### ##?# | | ???????????????????# = ##?# ####??# ### | | ???????????????????## #### !###???# #?? | | ???????????????????## ## ## % %[#???# #?? | | ???????????????????## ## ## ""*##### #?? | | ???????????????????### ### """ %%/ #?? | | ???????????? ??? ### ### """" ##### #?? | | ????????????? ? ### ##T #??## #?? | | ???????????? %? ? #?## #### """" #?## ##? | | ???????????? #?## ##??# """" #?# ## | | ??????????? ### % #???# """" #?# | | ???????????????# a% aad #???# #?# | | ????????????????# $ $ = #???########?# | | ????????????????###### # #???????????## | | ????????????????????## #??????????## | | ????????????????????# #?????????## | | ????????????????????## # #?????????# | | ????????????????????# #?????????# | | ????????????????????# #?????????# | | ????????????????????# @ #?????????# | | ????????????????????# # #?????????# | | ????????????????????# #?????????# # | | ????????????????????## #?????????## ## | | ?????????????????????## #??????????########? | | ??????????????????????## #####??????????????????? | | | | | | | | | | | | | | | | | | | | | | | | | | | | | | | | | | | | | | | +----------------------------------------------------+ Best States ------------- Heat Dissipation 28 Energy Generation 14 Energy Capacity 265 Matter Stores 300 Matter Capacity 300 Sight Range 16 Terrain Scan Density 10 Armor Coverage 150 Evasion (%) 55 Core Analysis 6 Item Schematics ----------------- None Robot Schematics ------------------ M-13 Machinist | -10/Materials | Hacked Fabricated ------------ Nothing Repaired ---------- Nothing Studied --------- Aluminum Leg | -9/Materials | Hacked Alien Tech Used ----------------- None Achievements -------------- None Challenges ------------ None Game ------ Seed BeamTransportAutohacker Manual? 0 Play Time 00:16:19 Cumulative 242.1 hours Start 2026.01.03 @ 19:24:28 End 2026.01.03 @ 20:26:28 Sessions 2 Manual Loads 0 Difficulty Rogue Special Mode None Game No. 231 Rogue 231 Adventurer 0 Explorer 0 Win Type - Total 11 Types 8/0/2/0/0/0/0/0/0/1 Lore% 87 Gallery% 77 Achievement% 61 Wizard Run 0 Options --------- Layout 1 ASCII 0 Keyboard 1 Movement Arrows Keybinds 0 Fullscreen 1 Font 24/Smallcaps Map View 50x40 Zoom Use 0% Tactical HUD 1 Map Filters NONE Filters NONE Steam 1 RUN: 97a797ea-1f1e-4094-bca5-52071810b5f0